Department family,Entity,Date,Expense type,Expense area,Supplier,Transaction number,Amount
Department of Health,Leicestershire Partnership NHS Trust,01/09/23,Healthcare Services / Recharges from Non-NHS Bodies,CAMHS Inpatient Service,Prometheus complex care ltd,0000002536,27976.25
Department of Health,Leicestershire Partnership NHS Trust,01/09/23,External Data Processing / Storage,Records & information Governance,L&R STORAGE,CV429,56514.99
Department of Health,Leicestershire Partnership NHS Trust,01/09/23,External Data Processing / Storage,Records & information Governance,L&R STORAGE,CV428,65955.26
Department of Health,Leicestershire Partnership NHS Trust,01/09/23,Unitary Payment,"The Agnes Unit (AKA Assessment and Treatment Centre) (P85, LPT)",ARDEN PARTNERSHIP (LEICESTER),SI0133,149114.44
Department of Health,Leicestershire Partnership NHS Trust,01/09/23,Lease Rents (IFRS16),"St Peters Health Center (Part 1st and 2nd floors) (P66, LPT)",LEICESTER LIFT CO,LEP1-SI1354,34244.84
Department of Health,Leicestershire Partnership NHS Trust,01/09/23,Legal Fees,Chief Executives Office,BROWNE JACOBSON LLP,1031964,66431.90
Department of Health,Leicestershire Partnership NHS Trust,04/09/23,Computer License  Fees,Finance Department,VERSION 1,INVSOL018868,39367.20
Department of Health,Leicestershire Partnership NHS Trust,04/09/23,Healthcare Services / Recharges from Non-NHS Bodies,Adult Eating Disorder Collaborative,PRIORY GROUP,301AUG23LEC,40763.14
Department of Health,Leicestershire Partnership NHS Trust,05/09/23,Payroll Deductions -Salary Sacrifice Cars Scheme,Balance Sheet Collection,TUSKER,80409,41862.04
Department of Health,Leicestershire Partnership NHS Trust,05/09/23,Drugs,Adult City Drugs,POLAR SPEED THERMOLOGISTICS,0001154622,11930.12
Department of Health,Leicestershire Partnership NHS Trust,05/09/23,Drugs,Adult County Drugs,POLAR SPEED THERMOLOGISTICS,0001154622,17895.18
Department of Health,Leicestershire Partnership NHS Trust,05/09/23,Lease Rents (IFRS16),Meridian (EFM Base),TRUSTEES OF WATER ROSE RETIRE FUND,008,30000.00
Department of Health,Leicestershire Partnership NHS Trust,06/09/23,Computer Software,School Age Immunisation and Vaccinations,CINNAMON DIGITAL APP LTD,INV-141,57783.60
Department of Health,Leicestershire Partnership NHS Trust,07/09/23,Nurse - Band 6 -Agency,AMH - Central Access Point,HCL NURSING,HNSI0001436,2888.74
Department of Health,Leicestershire Partnership NHS Trust,07/09/23,NURSE - BAND 2 - AGENCY,Agnes Unit,HCL NURSING,HNSI0001436,20276.11
Department of Health,Leicestershire Partnership NHS Trust,07/09/23,NURSE - BAND 5 - AGENCY,Agnes Unit,HCL NURSING,HNSI0001436,19974.49
Department of Health,Leicestershire Partnership NHS Trust,07/09/23,Nurse - Band 7 - Agency,Agnes Unit,HCL NURSING,HNSI0001436,2722.41
Department of Health,Leicestershire Partnership NHS Trust,07/09/23,NURSE - BAND 2 - AGENCY,Ashby Ward (Bradgate Unit),HCL NURSING,HNSI0001436,3212.19
Department of Health,Leicestershire Partnership NHS Trust,07/09/23,NURSE - BAND 5 - AGENCY,Ashby Ward (Bradgate Unit),HCL NURSING,HNSI0001436,10607.86
Department of Health,Leicestershire Partnership NHS Trust,07/09/23,NURSE - BAND 2 - AGENCY,Aston Ward Bradgate Unit (Prev Welford),HCL NURSING,HNSI0001436,1668.82
Department of Health,Leicestershire Partnership NHS Trust,07/09/23,NURSE - BAND 5 - AGENCY,Aston Ward Bradgate Unit (Prev Welford),HCL NURSING,HNSI0001436,1683.08
Department of Health,Leicestershire Partnership NHS Trust,07/09/23,NURSE - BAND 2 - AGENCY,Beaumont Ward - Bradgate Unit,HCL NURSING,HNSI0001436,1026.43
Department of Health,Leicestershire Partnership NHS Trust,07/09/23,NURSE - BAND 5 - AGENCY,Beaumont Ward - Bradgate Unit,HCL NURSING,HNSI0001436,6348.61
Department of Health,Leicestershire Partnership NHS Trust,07/09/23,NURSE - BAND 2 - AGENCY,Belvoir Psychiatric Intensive Care Unit,HCL NURSING,HNSI0001436,2120.78
Department of Health,Leicestershire Partnership NHS Trust,07/09/23,NURSE - BAND 5 - AGENCY,Belvoir Psychiatric Intensive Care Unit,HCL NURSING,HNSI0001436,2877.22
Department of Health,Leicestershire Partnership NHS Trust,07/09/23,NURSE - BAND 2 - AGENCY,Bosworth Ward - Bradgate Unit,HCL NURSING,HNSI0001436,255.92
Department of Health,Leicestershire Partnership NHS Trust,07/09/23,NURSE - BAND 5 - AGENCY,Bosworth Ward - Bradgate Unit,HCL NURSING,HNSI0001436,1526.61
Department of Health,Leicestershire Partnership NHS Trust,07/09/23,NURSE - BAND 2 - AGENCY,Cedar (Willows),HCL NURSING,HNSI0001436,413.10
Department of Health,Leicestershire Partnership NHS Trust,07/09/23,NURSE - BAND 5 - AGENCY,Cedar (Willows),HCL NURSING,HNSI0001436,777.09
Department of Health,Leicestershire Partnership NHS Trust,07/09/23,Nurse - Band 6 -Agency,City West CMHT MHSOP,HCL NURSING,HNSI0001436,1046.25
Department of Health,Leicestershire Partnership NHS Trust,07/09/23,NURSE - BAND 2 - AGENCY,Coleman Ward,HCL NURSING,HNSI0001436,3951.87
Department of Health,Leicestershire Partnership NHS Trust,07/09/23,NURSE - BAND 5 - AGENCY,Coleman Ward,HCL NURSING,HNSI0001436,4489.25
Department of Health,Leicestershire Partnership NHS Trust,07/09/23,NURSE - BAND 2 - AGENCY,Griffin Ward (HPC),HCL NURSING,HNSI0001436,1553.30
Department of Health,Leicestershire Partnership NHS Trust,07/09/23,NURSE - BAND 5 - AGENCY,Griffin Ward (HPC),HCL NURSING,HNSI0001436,6653.24
Department of Health,Leicestershire Partnership NHS Trust,07/09/23,NURSE - BAND 2 - AGENCY,Gwendolen Ward,HCL NURSING,HNSI0001436,519.10
Department of Health,Leicestershire Partnership NHS Trust,07/09/23,NURSE - BAND 5 - AGENCY,Gwendolen Ward,HCL NURSING,HNSI0001436,3928.40
Department of Health,Leicestershire Partnership NHS Trust,07/09/23,NURSE - BAND 2 - AGENCY,Heather Ward,HCL NURSING,HNSI0001436,2447.44
Department of Health,Leicestershire Partnership NHS Trust,07/09/23,NURSE - BAND 5 - AGENCY,Heather Ward,HCL NURSING,HNSI0001436,8516.02
Department of Health,Leicestershire Partnership NHS Trust,07/09/23,NURSE - BAND 2 - AGENCY,Kirby Ward,HCL NURSING,HNSI0001436,450.70
Department of Health,Leicestershire Partnership NHS Trust,07/09/23,NURSE - BAND 5 - AGENCY,Kirby Ward,HCL NURSING,HNSI0001436,1786.84
Department of Health,Leicestershire Partnership NHS Trust,07/09/23,NURSE - BAND 2 - AGENCY,Maple Ward,HCL NURSING,HNSI0001436,1.30
Department of Health,Leicestershire Partnership NHS Trust,07/09/23,NURSE - BAND 5 - AGENCY,Maple Ward,HCL NURSING,HNSI0001436,2896.90
Department of Health,Leicestershire Partnership NHS Trust,07/09/23,NURSE - BAND 2 - AGENCY,Mill Lodge,HCL NURSING,HNSI0001436,5211.27
Department of Health,Leicestershire Partnership NHS Trust,07/09/23,NURSE - BAND 5 - AGENCY,Mill Lodge,HCL NURSING,HNSI0001436,3578.46
Department of Health,Leicestershire Partnership NHS Trust,07/09/23,NURSE - BAND 2 - AGENCY,Phoenix Ward (HPC),HCL NURSING,HNSI0001436,883.02
Department of Health,Leicestershire Partnership NHS Trust,07/09/23,NURSE - BAND 5 - AGENCY,Phoenix Ward (HPC),HCL NURSING,HNSI0001436,4154.33
Department of Health,Leicestershire Partnership NHS Trust,07/09/23,NURSE - BAND 2 - AGENCY,Place Of Safety Assessment Unit,HCL NURSING,HNSI0001436,914.25
Department of Health,Leicestershire Partnership NHS Trust,07/09/23,NURSE - BAND 5 - AGENCY,Place Of Safety Assessment Unit,HCL NURSING,HNSI0001436,4205.62
Department of Health,Leicestershire Partnership NHS Trust,07/09/23,NURSE - BAND 2 - AGENCY,Sycamore (Willows),HCL NURSING,HNSI0001436,230.43
Department of Health,Leicestershire Partnership NHS Trust,07/09/23,NURSE - BAND 5 - AGENCY,Sycamore (Willows),HCL NURSING,HNSI0001436,1186.50
Department of Health,Leicestershire Partnership NHS Trust,07/09/23,NURSE - BAND 2 - AGENCY,Thornton Ward - Bradgate Unit,HCL NURSING,HNSI0001436,2149.20
Department of Health,Leicestershire Partnership NHS Trust,07/09/23,NURSE - BAND 5 - AGENCY,Thornton Ward - Bradgate Unit,HCL NURSING,HNSI0001436,3427.45
Department of Health,Leicestershire Partnership NHS Trust,07/09/23,Nurse - Band 6 -Agency,CAMHS Waiting List Monies,HCL WORKFORCE SOLUTIONS,HWSI0001911,12720.00
Department of Health,Leicestershire Partnership NHS Trust,07/09/23,Nurse - Band 6 -Agency,Crisis Response and Home Treatment,HCL WORKFORCE SOLUTIONS,HWSI0001911,9371.25
Department of Health,Leicestershire Partnership NHS Trust,07/09/23,Payroll Deductions -Home Electronics 83 Aug 23,Balance Sheet Collection,SME HCI LTD,147631,22223.40
Department of Health,Leicestershire Partnership NHS Trust,07/09/23,Building & Engineering Equipment Maintenance / Repairs,Estates & Maintenance Team,PINPOINT LTD,69071,44504.40
Department of Health,Leicestershire Partnership NHS Trust,07/09/23,Healthcare Services / Recharges from Non-NHS Bodies,Adult Eating Disorder Collaborative,ELLERN MEDE MOORGATE,OTM0723,37200.00
Department of Health,Leicestershire Partnership NHS Trust,08/09/23,Network Costs - WAN Maint,HIS Infrastructure,VIRGIN MEDIA BUSINESS,262421-212,35695.32
Department of Health,Leicestershire Partnership NHS Trust,08/09/23,HR / Payroll Services,HR Employment Services,LINCOLNSHIRE PART NHSFT(RP7),L0000987,34400.00
Department of Health,Leicestershire Partnership NHS Trust,08/09/23,WIP Project Not in BS - Buildings excl Dwellings,Work in Progress,TILBURY DOUGLAS CONSTRUCTION LTD,23090080,56330.57
Department of Health,Leicestershire Partnership NHS Trust,08/09/23,WIP Project Not in BS - Buildings excl Dwellings,Work in Progress,TILBURY DOUGLAS CONSTRUCTION LTD,23090081,31991.50
Department of Health,Leicestershire Partnership NHS Trust,08/09/23,WIP Project Not in BS - Buildings excl Dwellings,Work in Progress,TILBURY DOUGLAS CONSTRUCTION LTD,23090088,27456.29
Department of Health,Leicestershire Partnership NHS Trust,08/09/23,WIP Project Not in BS - Buildings excl Dwellings,Work in Progress,TILBURY DOUGLAS CONSTRUCTION LTD,23090089,114093.71
Department of Health,Leicestershire Partnership NHS Trust,08/09/23,WIP Project Not in BS - Buildings excl Dwellings,Work in Progress,TILBURY DOUGLAS CONSTRUCTION LTD,23090090,56331.77
Department of Health,Leicestershire Partnership NHS Trust,11/09/23,Crs_NHS_LT1y -Resus Inventory Supplied.,Balance Sheet Collection,SUPPLY CHAIN CO LTD,1124151125,34014.57
Department of Health,Leicestershire Partnership NHS Trust,11/09/23,Rates,"Bradgate Unit (including Glenvale day Unit) (P7, LPT)",LEIC CITY COUNCIL,8002537317/23-24CR,-106650.00
Department of Health,Leicestershire Partnership NHS Trust,11/09/23,Rates,"Bradgate Unit (including Glenvale day Unit) (P7, LPT)",LEIC CITY COUNCIL,8002537317/23-24REVISED,153359.00
Department of Health,Leicestershire Partnership NHS Trust,12/09/23,Lease Rents (IFRS16),"St Peters Health Center (Part 1st and 2nd floors) (P66, LPT)",LEICESTER LIFT CO,LEP1-SI1218,34244.84
Department of Health,Leicestershire Partnership NHS Trust,12/09/23,Lease Rents (IFRS16),"St Peters Health Center (Part 1st and 2nd floors) (P66, LPT)",LEICESTER LIFT CO,LEP1-SI1241,34244.84
Department of Health,Leicestershire Partnership NHS Trust,12/09/23,Course / Training Expenses,Learning & Develpoment,CRISIS PREVENTION INSTITUTE,RWIN-001457,21090.00
Department of Health,Leicestershire Partnership NHS Trust,12/09/23,Insurance Costs,Chief Executives Office,NHS LITIGATION AUTHORITY,SICX413445,226283.80
Department of Health,Leicestershire Partnership NHS Trust,13/09/23,Services / Recharges from NHS Trusts,Adult Eating Disorder Collaborative,NORTHAMPTONSHIRE HC NHS FT (RP1),5154352,25000.00
Department of Health,Leicestershire Partnership NHS Trust,13/09/23,Prep_ LT1y -Prepayments Lease Cars,Balance Sheet Collection,LEASEPLAN,512004622,24209.06
Department of Health,Leicestershire Partnership NHS Trust,13/09/23,Leased / Hired Vehicles,COVID 19,LEASEPLAN,512004622,944.72
Department of Health,Leicestershire Partnership NHS Trust,13/09/23,Leased / Hired Vehicles,Children's Occupational Therapy,LEASEPLAN,512004622,25.00
Department of Health,Leicestershire Partnership NHS Trust,13/09/23,Leased / Hired Vehicles,City Planned Care - West,LEASEPLAN,512004622,830.90
Department of Health,Leicestershire Partnership NHS Trust,13/09/23,Leased / Hired Vehicles,Crisis Response and Home Treatment,LEASEPLAN,512004622,80.00
Department of Health,Leicestershire Partnership NHS Trust,13/09/23,Leased / Hired Vehicles,Diana Complex Care Team,LEASEPLAN,512004622,30.00
Department of Health,Leicestershire Partnership NHS Trust,13/09/23,Leased / Hired Vehicles,Diana Respiratory Physio,LEASEPLAN,512004622,25.00
Department of Health,Leicestershire Partnership NHS Trust,13/09/23,Leased / Hired Vehicles,"East Planned Care - Melton,Syston,Rut - Therapy",LEASEPLAN,512004622,7.00
Department of Health,Leicestershire Partnership NHS Trust,13/09/23,Leased / Hired Vehicles,HIS Infrastructure,LEASEPLAN,512004622,53.98
Department of Health,Leicestershire Partnership NHS Trust,13/09/23,Leased / Hired Vehicles,Integrated Specialist Palliative Care Team,LEASEPLAN,512004622,25.00
Department of Health,Leicestershire Partnership NHS Trust,13/09/23,Leased / Hired Vehicles,LD ADMIN SUPPORT,LEASEPLAN,512004622,3851.39
Department of Health,Leicestershire Partnership NHS Trust,13/09/23,Leased / Hired Vehicles,LD CRIST,LEASEPLAN,512004622,751.52
Department of Health,Leicestershire Partnership NHS Trust,13/09/23,Leased / Hired Vehicles,Mental Health Triage Car,LEASEPLAN,512004622,35.00
Department of Health,Leicestershire Partnership NHS Trust,13/09/23,Leased / Hired Vehicles,Mill Lodge,LEASEPLAN,512004622,459.78
Department of Health,Leicestershire Partnership NHS Trust,13/09/23,Leased / Hired Vehicles,School Age Immunisation and Vaccinations,LEASEPLAN,512004622,135.00
Department of Health,Leicestershire Partnership NHS Trust,13/09/23,Leased / Hired Vehicles,Stewart House,LEASEPLAN,512004622,104.00
Department of Health,Leicestershire Partnership NHS Trust,13/09/23,Leased / Hired Vehicles,West Planned Care  - Hinckley Hub,LEASEPLAN,512004622,35.00
Department of Health,Leicestershire Partnership NHS Trust,13/09/23,Healthcare Services / Recharges from Non-NHS Bodies,Chief Nurse,LIZ BAINBRIDGE CONSULTANCY LTD,FOURDOMESTICABUSE008,28035.53
Department of Health,Leicestershire Partnership NHS Trust,14/09/23,NURSE - BAND 2 - AGENCY,Beechwood Ward,HCL NURSING,HNSI0001442,5455.06
Department of Health,Leicestershire Partnership NHS Trust,14/09/23,NURSE - BAND 5 - AGENCY,Beechwood Ward,HCL NURSING,HNSI0001442,2738.39
Department of Health,Leicestershire Partnership NHS Trust,14/09/23,NURSE - BAND 5 - AGENCY,City Planned Care - East,HCL NURSING,HNSI0001442,33352.24
Department of Health,Leicestershire Partnership NHS Trust,14/09/23,NURSE - BAND 5 - AGENCY,City Planned Care - West,HCL NURSING,HNSI0001442,18749.30
Department of Health,Leicestershire Partnership NHS Trust,14/09/23,NURSE - BAND 2 - AGENCY,Clarendon Ward,HCL NURSING,HNSI0001442,5261.03
Department of Health,Leicestershire Partnership NHS Trust,14/09/23,NURSE - BAND 5 - AGENCY,Clarendon Ward,HCL NURSING,HNSI0001442,524.53
Department of Health,Leicestershire Partnership NHS Trust,14/09/23,NURSE - BAND 2 - AGENCY,Coalville Snibston Ward,HCL NURSING,HNSI0001442,7726.93
Department of Health,Leicestershire Partnership NHS Trust,14/09/23,NURSE - BAND 5 - AGENCY,Coalville Snibston Ward,HCL NURSING,HNSI0001442,1938.39
Department of Health,Leicestershire Partnership NHS Trust,14/09/23,NURSE - BAND 2 - AGENCY,Coalville Ward 2,HCL NURSING,HNSI0001442,2535.20
Department of Health,Leicestershire Partnership NHS Trust,14/09/23,NURSE - BAND 5 - AGENCY,Coalville Ward 2,HCL NURSING,HNSI0001442,514.85
Department of Health,Leicestershire Partnership NHS Trust,14/09/23,NURSE - BAND 2 - AGENCY,Dalgliesh Ward,HCL NURSING,HNSI0001442,10489.38
Department of Health,Leicestershire Partnership NHS Trust,14/09/23,NURSE - BAND 5 - AGENCY,Dalgliesh Ward,HCL NURSING,HNSI0001442,9460.22
Department of Health,Leicestershire Partnership NHS Trust,14/09/23,NURSE - BAND 5 - AGENCY,"East Planned Care - Melton,Syston,Rutland",HCL NURSING,HNSI0001442,765.41
Department of Health,Leicestershire Partnership NHS Trust,14/09/23,NURSE - BAND 2 - AGENCY,H&B Comm Hosp East Ward,HCL NURSING,HNSI0001442,7184.64
Department of Health,Leicestershire Partnership NHS Trust,14/09/23,NURSE - BAND 5 - AGENCY,H&B Comm Hosp East Ward,HCL NURSING,HNSI0001442,4167.83
Department of Health,Leicestershire Partnership NHS Trust,14/09/23,NURSE - BAND 2 - AGENCY,H&B Comm Hosp North Ward,HCL NURSING,HNSI0001442,4199.36
Department of Health,Leicestershire Partnership NHS Trust,14/09/23,NURSE - BAND 5 - AGENCY,H&B Comm Hosp North Ward,HCL NURSING,HNSI0001442,3206.82
Department of Health,Leicestershire Partnership NHS Trust,14/09/23,NURSE - BAND 2 - AGENCY,Lough Swithland Ward,HCL NURSING,HNSI0001442,1275.85
Department of Health,Leicestershire Partnership NHS Trust,14/09/23,NURSE - BAND 5 - AGENCY,Lough Swithland Ward,HCL NURSING,HNSI0001442,6935.34
Department of Health,Leicestershire Partnership NHS Trust,14/09/23,NURSE - BAND 2 - AGENCY,Loughborough Charnwood Ward,HCL NURSING,HNSI0001442,6424.85
Department of Health,Leicestershire Partnership NHS Trust,14/09/23,NURSE - BAND 5 - AGENCY,Loughborough Charnwood Ward,HCL NURSING,HNSI0001442,7175.24
Department of Health,Leicestershire Partnership NHS Trust,14/09/23,NURSE - BAND 5 - AGENCY,Non Recurrent 2012/13,HCL NURSING,HNSI0001442,-10644.48
Department of Health,Leicestershire Partnership NHS Trust,14/09/23,NURSE - BAND 2 - AGENCY,Rutland Ward Nursing,HCL NURSING,HNSI0001442,4954.91
Department of Health,Leicestershire Partnership NHS Trust,14/09/23,NURSE - BAND 5 - AGENCY,Rutland Ward Nursing,HCL NURSING,HNSI0001442,3801.53
Department of Health,Leicestershire Partnership NHS Trust,14/09/23,NURSE - BAND 2 - AGENCY,St Lukes Stroke Ward,HCL NURSING,HNSI0001442,3778.86
Department of Health,Leicestershire Partnership NHS Trust,14/09/23,NURSE - BAND 5 - AGENCY,St Lukes Stroke Ward,HCL NURSING,HNSI0001442,5637.70
Department of Health,Leicestershire Partnership NHS Trust,14/09/23,NURSE - BAND 2 - AGENCY,St Lukes Ward 3,HCL NURSING,HNSI0001442,2983.47
Department of Health,Leicestershire Partnership NHS Trust,14/09/23,NURSE - BAND 5 - AGENCY,St Lukes Ward 3,HCL NURSING,HNSI0001442,5252.99
Department of Health,Leicestershire Partnership NHS Trust,14/09/23,NURSE - BAND 5 - AGENCY,West Planned Care  - Charnwood Hub,HCL NURSING,HNSI0001442,1348.49
Department of Health,Leicestershire Partnership NHS Trust,14/09/23,NURSE - BAND 5 - AGENCY,West Planned Care  - Hinckley Hub,HCL NURSING,HNSI0001442,5533.33
Department of Health,Leicestershire Partnership NHS Trust,14/09/23,NURSE - BAND 5 - AGENCY,West Planned Care - NWL Hub,HCL NURSING,HNSI0001442,475.00
Department of Health,Leicestershire Partnership NHS Trust,14/09/23,Nurse - Band 6 -Agency,AMH - Central Access Point,HCL WORKFORCE SOLUTIONS,HWSI0001917,10538.40
Department of Health,Leicestershire Partnership NHS Trust,14/09/23,Nurse - Band 6 -Agency,Adult City Central CMHT - St Peters,HCL WORKFORCE SOLUTIONS,HWSI0001917,1183.63
Department of Health,Leicestershire Partnership NHS Trust,14/09/23,Nurse - Band 6 -Agency,Adult County South Leicestershire CMHT,HCL WORKFORCE SOLUTIONS,HWSI0001917,1868.95
Department of Health,Leicestershire Partnership NHS Trust,14/09/23,Nurse - Band 7 - Agency,Adult County South Leicestershire CMHT,HCL WORKFORCE SOLUTIONS,HWSI0001917,1040.53
Department of Health,Leicestershire Partnership NHS Trust,14/09/23,Nurse - Band 6 -Agency,Adult County- East Leicester CMHT,HCL WORKFORCE SOLUTIONS,HWSI0001917,79.19
Department of Health,Leicestershire Partnership NHS Trust,14/09/23,Nurse - Band 6 -Agency,Crisis Resolution,HCL WORKFORCE SOLUTIONS,HWSI0001917,3577.14
Department of Health,Leicestershire Partnership NHS Trust,14/09/23,Nurse - Band 6 -Agency,Melton & Rutland CMHT MHSOP,HCL WORKFORCE SOLUTIONS,HWSI0001917,1525.73
Department of Health,Leicestershire Partnership NHS Trust,14/09/23,Nurse - Band 6 -Agency,SDF Case Load Reviews 23/24,HCL WORKFORCE SOLUTIONS,HWSI0001917,2258.91
Department of Health,Leicestershire Partnership NHS Trust,14/09/23,Nurse - Band 6 -Agency,AMH - Central Access Point,HCL NURSING,HNSI0001441,2742.09
Department of Health,Leicestershire Partnership NHS Trust,14/09/23,NURSE - BAND 2 - AGENCY,Agnes Unit,HCL NURSING,HNSI0001441,20289.84
Department of Health,Leicestershire Partnership NHS Trust,14/09/23,NURSE - BAND 5 - AGENCY,Agnes Unit,HCL NURSING,HNSI0001441,18384.79
Department of Health,Leicestershire Partnership NHS Trust,14/09/23,Nurse - Band 7 - Agency,Agnes Unit,HCL NURSING,HNSI0001441,1795.00
Department of Health,Leicestershire Partnership NHS Trust,14/09/23,NURSE - BAND 5 - AGENCY,Ashby Ward (Bradgate Unit),HCL NURSING,HNSI0001441,8473.44
Department of Health,Leicestershire Partnership NHS Trust,14/09/23,NURSE - BAND 2 - AGENCY,Aston Ward Bradgate Unit (Prev Welford),HCL NURSING,HNSI0001441,2133.33
Department of Health,Leicestershire Partnership NHS Trust,14/09/23,NURSE - BAND 5 - AGENCY,Aston Ward Bradgate Unit (Prev Welford),HCL NURSING,HNSI0001441,2396.15
Department of Health,Leicestershire Partnership NHS Trust,14/09/23,NURSE - BAND 2 - AGENCY,Beaumont Ward - Bradgate Unit,HCL NURSING,HNSI0001441,1462.61
Department of Health,Leicestershire Partnership NHS Trust,14/09/23,NURSE - BAND 5 - AGENCY,Beaumont Ward - Bradgate Unit,HCL NURSING,HNSI0001441,7167.22
Department of Health,Leicestershire Partnership NHS Trust,14/09/23,NURSE - BAND 2 - AGENCY,Belvoir Psychiatric Intensive Care Unit,HCL NURSING,HNSI0001441,1173.11
Department of Health,Leicestershire Partnership NHS Trust,14/09/23,NURSE - BAND 5 - AGENCY,Belvoir Psychiatric Intensive Care Unit,HCL NURSING,HNSI0001441,4460.64
Department of Health,Leicestershire Partnership NHS Trust,14/09/23,NURSE - BAND 2 - AGENCY,Bosworth Ward - Bradgate Unit,HCL NURSING,HNSI0001441,1941.63
Department of Health,Leicestershire Partnership NHS Trust,14/09/23,NURSE - BAND 5 - AGENCY,Bosworth Ward - Bradgate Unit,HCL NURSING,HNSI0001441,807.87
Department of Health,Leicestershire Partnership NHS Trust,14/09/23,NURSE - BAND 5 - AGENCY,Cedar (Willows),HCL NURSING,HNSI0001441,841.30
Department of Health,Leicestershire Partnership NHS Trust,14/09/23,Nurse - Band 6 -Agency,City West CMHT MHSOP,HCL NURSING,HNSI0001441,837.00
Department of Health,Leicestershire Partnership NHS Trust,14/09/23,NURSE - BAND 2 - AGENCY,Coleman Ward,HCL NURSING,HNSI0001441,5936.22
Department of Health,Leicestershire Partnership NHS Trust,14/09/23,NURSE - BAND 5 - AGENCY,Coleman Ward,HCL NURSING,HNSI0001441,2735.33
Department of Health,Leicestershire Partnership NHS Trust,14/09/23,NURSE - BAND 5 - AGENCY,Crisis Resolution,HCL NURSING,HNSI0001441,880.95
Department of Health,Leicestershire Partnership NHS Trust,14/09/23,NURSE - BAND 2 - AGENCY,Griffin Ward (HPC),HCL NURSING,HNSI0001441,2601.20
Department of Health,Leicestershire Partnership NHS Trust,14/09/23,NURSE - BAND 5 - AGENCY,Griffin Ward (HPC),HCL NURSING,HNSI0001441,6421.07
Department of Health,Leicestershire Partnership NHS Trust,14/09/23,NURSE - BAND 2 - AGENCY,Gwendolen Ward,HCL NURSING,HNSI0001441,679.40
Department of Health,Leicestershire Partnership NHS Trust,14/09/23,NURSE - BAND 5 - AGENCY,Gwendolen Ward,HCL NURSING,HNSI0001441,437.47
Department of Health,Leicestershire Partnership NHS Trust,14/09/23,NURSE - BAND 2 - AGENCY,Heather Ward,HCL NURSING,HNSI0001441,3564.67
Department of Health,Leicestershire Partnership NHS Trust,14/09/23,NURSE - BAND 5 - AGENCY,Heather Ward,HCL NURSING,HNSI0001441,6588.32
Department of Health,Leicestershire Partnership NHS Trust,14/09/23,NURSE - BAND 2 - AGENCY,Kirby Ward,HCL NURSING,HNSI0001441,478.88
Department of Health,Leicestershire Partnership NHS Trust,14/09/23,NURSE - BAND 5 - AGENCY,Kirby Ward,HCL NURSING,HNSI0001441,1861.52
Department of Health,Leicestershire Partnership NHS Trust,14/09/23,NURSE - BAND 2 - AGENCY,Maple Ward,HCL NURSING,HNSI0001441,508.45
Department of Health,Leicestershire Partnership NHS Trust,14/09/23,NURSE - BAND 5 - AGENCY,Maple Ward,HCL NURSING,HNSI0001441,1102.19
Department of Health,Leicestershire Partnership NHS Trust,14/09/23,Nurse - Band 6 -Agency,Mental Health Liaison Team,HCL NURSING,HNSI0001441,1866.72
Department of Health,Leicestershire Partnership NHS Trust,14/09/23,NURSE - BAND 2 - AGENCY,Mill Lodge,HCL NURSING,HNSI0001441,3295.28
Department of Health,Leicestershire Partnership NHS Trust,14/09/23,NURSE - BAND 5 - AGENCY,Mill Lodge,HCL NURSING,HNSI0001441,1896.53
Department of Health,Leicestershire Partnership NHS Trust,14/09/23,NURSE - BAND 2 - AGENCY,Phoenix Ward (HPC),HCL NURSING,HNSI0001441,1026.70
Department of Health,Leicestershire Partnership NHS Trust,14/09/23,NURSE - BAND 5 - AGENCY,Phoenix Ward (HPC),HCL NURSING,HNSI0001441,998.91
Department of Health,Leicestershire Partnership NHS Trust,14/09/23,NURSE - BAND 2 - AGENCY,Place Of Safety Assessment Unit,HCL NURSING,HNSI0001441,831.57
Department of Health,Leicestershire Partnership NHS Trust,14/09/23,NURSE - BAND 5 - AGENCY,Place Of Safety Assessment Unit,HCL NURSING,HNSI0001441,2591.55
Department of Health,Leicestershire Partnership NHS Trust,14/09/23,NURSE - BAND 2 - AGENCY,Stewart House,HCL NURSING,HNSI0001441,205.84
Department of Health,Leicestershire Partnership NHS Trust,14/09/23,NURSE - BAND 2 - AGENCY,Sycamore (Willows),HCL NURSING,HNSI0001441,133.46
Department of Health,Leicestershire Partnership NHS Trust,14/09/23,NURSE - BAND 5 - AGENCY,Sycamore (Willows),HCL NURSING,HNSI0001441,4633.67
Department of Health,Leicestershire Partnership NHS Trust,14/09/23,NURSE - BAND 2 - AGENCY,Thornton Ward - Bradgate Unit,HCL NURSING,HNSI0001441,250.14
Department of Health,Leicestershire Partnership NHS Trust,14/09/23,NURSE - BAND 5 - AGENCY,Thornton Ward - Bradgate Unit,HCL NURSING,HNSI0001441,2703.24
Department of Health,Leicestershire Partnership NHS Trust,14/09/23,Nurse - Band 6 -Agency,CAMHS Waiting List Monies,HCL WORKFORCE SOLUTIONS,HWSI0001919,18465.11
Department of Health,Leicestershire Partnership NHS Trust,14/09/23,Nurse - Band 6 -Agency,Crisis Response and Home Treatment,HCL WORKFORCE SOLUTIONS,HWSI0001919,8879.33
Department of Health,Leicestershire Partnership NHS Trust,14/09/23,Nurse - Band 7 - Agency,Crisis Response and Home Treatment,HCL WORKFORCE SOLUTIONS,HWSI0001919,1095.00
Department of Health,Leicestershire Partnership NHS Trust,14/09/23,Pharmacy Payables Control A/C (LPT JAC),Balance Sheet Collection,ALLOGA UK LTD,SCR100163183,-29655.96
Department of Health,Leicestershire Partnership NHS Trust,14/09/23,Photocopying,Estates & Facilities Central,LEXMARK INTERNATIONAL LTD,900650306547,28091.75
Department of Health,Leicestershire Partnership NHS Trust,14/09/23,Course / Training Expenses,Decider,THE DECIDER,2369,50000.00
Department of Health,Leicestershire Partnership NHS Trust,14/09/23,Other Non-Medical Supplies & Services,Bradgate Unit Site Services,BLABY DISTRICT COUNCIL,H0013997,84000.00
Department of Health,Leicestershire Partnership NHS Trust,15/09/23,Nurse - Band 6 -Agency,AMH - Central Access Point,HCL NURSING,HNSI0001447,2782.32
Department of Health,Leicestershire Partnership NHS Trust,15/09/23,NURSE - BAND 2 - AGENCY,Agnes Unit,HCL NURSING,HNSI0001447,22361.89
Department of Health,Leicestershire Partnership NHS Trust,15/09/23,NURSE - BAND 5 - AGENCY,Agnes Unit,HCL NURSING,HNSI0001447,21437.80
Department of Health,Leicestershire Partnership NHS Trust,15/09/23,Nurse - Band 7 - Agency,Agnes Unit,HCL NURSING,HNSI0001447,1573.83
Department of Health,Leicestershire Partnership NHS Trust,15/09/23,NURSE - BAND 2 - AGENCY,Ashby Ward (Bradgate Unit),HCL NURSING,HNSI0001447,2638.99
Department of Health,Leicestershire Partnership NHS Trust,15/09/23,NURSE - BAND 5 - AGENCY,Ashby Ward (Bradgate Unit),HCL NURSING,HNSI0001447,11465.31
Department of Health,Leicestershire Partnership NHS Trust,15/09/23,NURSE - BAND 2 - AGENCY,Aston Ward Bradgate Unit (Prev Welford),HCL NURSING,HNSI0001447,2875.51
Department of Health,Leicestershire Partnership NHS Trust,15/09/23,NURSE - BAND 5 - AGENCY,Aston Ward Bradgate Unit (Prev Welford),HCL NURSING,HNSI0001447,2614.86
Department of Health,Leicestershire Partnership NHS Trust,15/09/23,NURSE - BAND 2 - AGENCY,Beaumont Ward - Bradgate Unit,HCL NURSING,HNSI0001447,5271.89
Department of Health,Leicestershire Partnership NHS Trust,15/09/23,NURSE - BAND 5 - AGENCY,Beaumont Ward - Bradgate Unit,HCL NURSING,HNSI0001447,9117.19
Department of Health,Leicestershire Partnership NHS Trust,15/09/23,NURSE - BAND 2 - AGENCY,Belvoir Psychiatric Intensive Care Unit,HCL NURSING,HNSI0001447,823.37
Department of Health,Leicestershire Partnership NHS Trust,15/09/23,NURSE - BAND 5 - AGENCY,Belvoir Psychiatric Intensive Care Unit,HCL NURSING,HNSI0001447,6279.92
Department of Health,Leicestershire Partnership NHS Trust,15/09/23,NURSE - BAND 2 - AGENCY,Bosworth Ward - Bradgate Unit,HCL NURSING,HNSI0001447,1789.68
Department of Health,Leicestershire Partnership NHS Trust,15/09/23,NURSE - BAND 5 - AGENCY,Bosworth Ward - Bradgate Unit,HCL NURSING,HNSI0001447,1840.63
Department of Health,Leicestershire Partnership NHS Trust,15/09/23,NURSE - BAND 5 - AGENCY,Cedar (Willows),HCL NURSING,HNSI0001447,1316.74
Department of Health,Leicestershire Partnership NHS Trust,15/09/23,Nurse - Band 6 -Agency,City West CMHT MHSOP,HCL NURSING,HNSI0001447,837.00
Department of Health,Leicestershire Partnership NHS Trust,15/09/23,NURSE - BAND 2 - AGENCY,Coleman Ward,HCL NURSING,HNSI0001447,4690.05
Department of Health,Leicestershire Partnership NHS Trust,15/09/23,NURSE - BAND 5 - AGENCY,Coleman Ward,HCL NURSING,HNSI0001447,4367.40
Department of Health,Leicestershire Partnership NHS Trust,15/09/23,NURSE - BAND 5 - AGENCY,Crisis Resolution,HCL NURSING,HNSI0001447,1321.42
Department of Health,Leicestershire Partnership NHS Trust,15/09/23,NURSE - BAND 2 - AGENCY,Griffin Ward (HPC),HCL NURSING,HNSI0001447,3231.74
Department of Health,Leicestershire Partnership NHS Trust,15/09/23,NURSE - BAND 5 - AGENCY,Griffin Ward (HPC),HCL NURSING,HNSI0001447,6021.85
Department of Health,Leicestershire Partnership NHS Trust,15/09/23,NURSE - BAND 2 - AGENCY,Gwendolen Ward,HCL NURSING,HNSI0001447,447.06
Department of Health,Leicestershire Partnership NHS Trust,15/09/23,NURSE - BAND 5 - AGENCY,Gwendolen Ward,HCL NURSING,HNSI0001447,1464.95
Department of Health,Leicestershire Partnership NHS Trust,15/09/23,NURSE - BAND 2 - AGENCY,Heather Ward,HCL NURSING,HNSI0001447,3805.07
Department of Health,Leicestershire Partnership NHS Trust,15/09/23,NURSE - BAND 5 - AGENCY,Heather Ward,HCL NURSING,HNSI0001447,9539.59
Department of Health,Leicestershire Partnership NHS Trust,15/09/23,NURSE - BAND 2 - AGENCY,Kirby Ward,HCL NURSING,HNSI0001447,1676.20
Department of Health,Leicestershire Partnership NHS Trust,15/09/23,NURSE - BAND 2 - AGENCY,Maple Ward,HCL NURSING,HNSI0001447,617.53
Department of Health,Leicestershire Partnership NHS Trust,15/09/23,NURSE - BAND 2 - AGENCY,Mill Lodge,HCL NURSING,HNSI0001447,4136.66
Department of Health,Leicestershire Partnership NHS Trust,15/09/23,NURSE - BAND 5 - AGENCY,Mill Lodge,HCL NURSING,HNSI0001447,3176.95
Department of Health,Leicestershire Partnership NHS Trust,15/09/23,NURSE - BAND 2 - AGENCY,Phoenix Ward (HPC),HCL NURSING,HNSI0001447,1862.17
Department of Health,Leicestershire Partnership NHS Trust,15/09/23,NURSE - BAND 5 - AGENCY,Phoenix Ward (HPC),HCL NURSING,HNSI0001447,1849.45
Department of Health,Leicestershire Partnership NHS Trust,15/09/23,NURSE - BAND 2 - AGENCY,Place Of Safety Assessment Unit,HCL NURSING,HNSI0001447,415.78
Department of Health,Leicestershire Partnership NHS Trust,15/09/23,NURSE - BAND 5 - AGENCY,Place Of Safety Assessment Unit,HCL NURSING,HNSI0001447,1589.65
Department of Health,Leicestershire Partnership NHS Trust,15/09/23,NURSE - BAND 2 - AGENCY,Sycamore (Willows),HCL NURSING,HNSI0001447,1388.01
Department of Health,Leicestershire Partnership NHS Trust,15/09/23,NURSE - BAND 5 - AGENCY,Sycamore (Willows),HCL NURSING,HNSI0001447,3465.39
Department of Health,Leicestershire Partnership NHS Trust,15/09/23,NURSE - BAND 2 - AGENCY,Thornton Ward - Bradgate Unit,HCL NURSING,HNSI0001447,853.26
Department of Health,Leicestershire Partnership NHS Trust,15/09/23,NURSE - BAND 5 - AGENCY,Thornton Ward - Bradgate Unit,HCL NURSING,HNSI0001447,3960.20
Department of Health,Leicestershire Partnership NHS Trust,15/09/23,Nurse - Band 6 -Agency,CAMHS Waiting List Monies,HCL WORKFORCE SOLUTIONS,HWSI0001926,12962.63
Department of Health,Leicestershire Partnership NHS Trust,15/09/23,Nurse - Band 6 -Agency,Crisis Response and Home Treatment,HCL WORKFORCE SOLUTIONS,HWSI0001926,9701.70
Department of Health,Leicestershire Partnership NHS Trust,15/09/23,Nurse - Band 7 - Agency,Crisis Response and Home Treatment,HCL WORKFORCE SOLUTIONS,HWSI0001926,1368.75
Department of Health,Leicestershire Partnership NHS Trust,18/09/23,Computer Software,Leicester City CCG IT Recharge,FOREIGN DRAFT UPDATE.,INV-0315,25000.00
Department of Health,Leicestershire Partnership NHS Trust,18/09/23,NHS Property Services Estates Management,Hinckley & District Hospital (PROPCO),NHS PROPERTY SERVICES LTD,735303,-47560.75
Department of Health,Leicestershire Partnership NHS Trust,18/09/23,Crs_NHS_LT1y -Resus Inventory Supplied.,Balance Sheet Collection,SUPPLY CHAIN CO LTD,1124158692,38458.36
Department of Health,Leicestershire Partnership NHS Trust,18/09/23,Gas,"Beaumont Leys Health Centre (P94, LPT)",TOTAL GAS & POWER LTD,314140117/23,821.87
Department of Health,Leicestershire Partnership NHS Trust,18/09/23,Gas,"Bennion Centre (including Forest Grange Day Unit) (P8, LPT)",TOTAL GAS & POWER LTD,314140117/23,8889.85
Department of Health,Leicestershire Partnership NHS Trust,18/09/23,Gas,"Bradgate Unit (including Glenvale day Unit) (P7, LPT)",TOTAL GAS & POWER LTD,314140117/23,12533.93
Department of Health,Leicestershire Partnership NHS Trust,18/09/23,Gas,Bridge Park Plaza - First Floor (LPT),TOTAL GAS & POWER LTD,314140117/23,1325.16
Department of Health,Leicestershire Partnership NHS Trust,18/09/23,Gas,"Bridge Park Road - Units 2 and 3 (P148, LPT)",TOTAL GAS & POWER LTD,314140117/23,238.41
Department of Health,Leicestershire Partnership NHS Trust,18/09/23,Gas,"Coalville Community Hospital (P138, LPT)",TOTAL GAS & POWER LTD,314140117/23,11182.79
Department of Health,Leicestershire Partnership NHS Trust,18/09/23,Gas,"Coalville Health Centre (P121, LPT)",TOTAL GAS & POWER LTD,314140117/23,456.69
Department of Health,Leicestershire Partnership NHS Trust,18/09/23,Gas,"Evington Centre (P6, LPT)",TOTAL GAS & POWER LTD,314140117/23,1189.63
Department of Health,Leicestershire Partnership NHS Trust,18/09/23,Gas,"Farm Lodge (P34, LPT)",TOTAL GAS & POWER LTD,314140117/23,73.66
Department of Health,Leicestershire Partnership NHS Trust,18/09/23,Gas,"Feilding Palmer Hospital (Lutterworth) (P131, LPT)",TOTAL GAS & POWER LTD,314140117/23,2443.38
Department of Health,Leicestershire Partnership NHS Trust,18/09/23,Gas,"Frith Cottages 3 & 4 (P36, LPT)",TOTAL GAS & POWER LTD,314140117/23,127.51
Department of Health,Leicestershire Partnership NHS Trust,18/09/23,Gas,HIS,TOTAL GAS & POWER LTD,314140117/23,129.08
Department of Health,Leicestershire Partnership NHS Trust,18/09/23,Gas,"Hawthorne Centre - Coalville (P14, LPT)",TOTAL GAS & POWER LTD,314140117/23,327.99
Department of Health,Leicestershire Partnership NHS Trust,18/09/23,Gas,"Hinckley and Bosworth Community Hospital (Sunnyside) (P133, LPT)",TOTAL GAS & POWER LTD,314140117/23,8164.15
Department of Health,Leicestershire Partnership NHS Trust,18/09/23,Gas,"Hynca Lodge (P33, LPT)",TOTAL GAS & POWER LTD,314140117/23,412.28
Department of Health,Leicestershire Partnership NHS Trust,18/09/23,Gas,"LGH - Gwendolen House (P4, LPT)",TOTAL GAS & POWER LTD,314140117/23,1076.83
Department of Health,Leicestershire Partnership NHS Trust,18/09/23,Gas,"Loughborough Hospital (P136, LPT)",TOTAL GAS & POWER LTD,314140117/23,15615.22
Department of Health,Leicestershire Partnership NHS Trust,18/09/23,Gas,Mawson House (LPT),TOTAL GAS & POWER LTD,314140117/23,215.66
Department of Health,Leicestershire Partnership NHS Trust,18/09/23,Gas,"Mett Centre (P49, LPT)",TOTAL GAS & POWER LTD,314140117/23,332.31
Department of Health,Leicestershire Partnership NHS Trust,18/09/23,Gas,"Narborough Health Centre (P117, LPT)",TOTAL GAS & POWER LTD,314140117/23,373.04
Department of Health,Leicestershire Partnership NHS Trust,18/09/23,Gas,"Neville Centre - LGH (was DSC) (P147, LPT)",TOTAL GAS & POWER LTD,314140117/23,865.31
Department of Health,Leicestershire Partnership NHS Trust,18/09/23,Gas,"OSL House (P54, LPT)",TOTAL GAS & POWER LTD,314140117/23,338.10
Department of Health,Leicestershire Partnership NHS Trust,18/09/23,Gas,"Orchard Resource Centre (P15, LPT)",TOTAL GAS & POWER LTD,314140117/23,311.70
Department of Health,Leicestershire Partnership NHS Trust,18/09/23,Gas,"Rutland Memorial Hospital (P134, LPT)",TOTAL GAS & POWER LTD,314140117/23,2426.99
Department of Health,Leicestershire Partnership NHS Trust,18/09/23,Gas,"Shepshed Health Centre (P123, LPT)",TOTAL GAS & POWER LTD,314140117/23,432.66
Department of Health,Leicestershire Partnership NHS Trust,18/09/23,Gas,"Springfield Road Health Centre (P92, LPT)",TOTAL GAS & POWER LTD,314140117/23,455.38
Department of Health,Leicestershire Partnership NHS Trust,18/09/23,Gas,"Stewart House (P61, LPT)",TOTAL GAS & POWER LTD,314140117/23,2955.24
Department of Health,Leicestershire Partnership NHS Trust,18/09/23,Gas,"Swithland House - London Road 352 (P44, LPT)",TOTAL GAS & POWER LTD,314140117/23,795.73
Department of Health,Leicestershire Partnership NHS Trust,18/09/23,Gas,"The Agnes Unit (AKA Assessment and Treatment Centre) (P85, LPT)",TOTAL GAS & POWER LTD,314140117/23,5524.82
Department of Health,Leicestershire Partnership NHS Trust,18/09/23,Gas,The Beacon,TOTAL GAS & POWER LTD,314140117/23,1903.34
Department of Health,Leicestershire Partnership NHS Trust,18/09/23,Gas,"The Cedars (P19, LPT)",TOTAL GAS & POWER LTD,314140117/23,147.73
Department of Health,Leicestershire Partnership NHS Trust,18/09/23,Gas,"The Grange 1 (P4, LPT)",TOTAL GAS & POWER LTD,314140117/23,219.69
Department of Health,Leicestershire Partnership NHS Trust,18/09/23,Gas,"The Grange 2 (P41, LPT)",TOTAL GAS & POWER LTD,314140117/23,96.39
Department of Health,Leicestershire Partnership NHS Trust,18/09/23,Gas,"The Willows - Cordelia Close (P22, LPT)",TOTAL GAS & POWER LTD,314140117/23,2795.33
Department of Health,Leicestershire Partnership NHS Trust,18/09/23,Gas,"Valentine Centre (P3, LPT)",TOTAL GAS & POWER LTD,314140117/23,2215.38
Department of Health,Leicestershire Partnership NHS Trust,18/09/23,Gas,"Westcotes Group -Westcotes House (P78, LPT)",TOTAL GAS & POWER LTD,314140117/23,1170.95
Department of Health,Leicestershire Partnership NHS Trust,18/09/23,Gas,"Winstanley Drive Health Centre (P8, LPT)",TOTAL GAS & POWER LTD,314140117/23,461.27
Department of Health,Leicestershire Partnership NHS Trust,19/09/23,BOUGHT IN GPs,Mill Lodge,THE LIMES MEDICAL CTR,58,22925.20
Department of Health,Leicestershire Partnership NHS Trust,19/09/23,BOUGHT IN GPs,Stewart House,THE LIMES MEDICAL CTR,58,26102.80
Department of Health,Leicestershire Partnership NHS Trust,19/09/23,Med GP Trainees,Medical Trainees,MWL TEACHING HOSPITALS NHS TRUST,16824781,75000.00
Department of Health,Leicestershire Partnership NHS Trust,19/09/23,Admin & Clerical - Agency,FM Transformation,MICHAEL PAGE INT LTD,6948099,25165.25
Department of Health,Leicestershire Partnership NHS Trust,19/09/23,Mobile Telephone Rental / Calls,Specific Unit Budget Reserves,VODAFONE CORPORATE LTD,SEPTEMBER2023,70502.73
Department of Health,Leicestershire Partnership NHS Trust,19/09/23,Lease Rents (IFRS16),County Hall,LEIC COUNTY COUNCIL,6296155,34488.50
Department of Health,Leicestershire Partnership NHS Trust,20/09/23,Services / Recharges from NHS Trusts,Inter Unit I & E Distribution,UHL NHS TRUST (RWE),L0274001,33561.09
Department of Health,Leicestershire Partnership NHS Trust,20/09/23,Building & Engineering Equipment Equipment/Materials,Estates & Maintenance Team,ASHWELL MAINTENANCE LTD,74478,4645.84
Department of Health,Leicestershire Partnership NHS Trust,20/09/23,Building & Engineering Equipment Maintenance / Repairs,Estates & Maintenance Team,ASHWELL MAINTENANCE LTD,74478,28624.81
Department of Health,Leicestershire Partnership NHS Trust,21/09/23,Drugs,Adult City Drugs,POLAR SPEED THERMOLOGISTICS,0001166660,16183.59
Department of Health,Leicestershire Partnership NHS Trust,21/09/23,Drugs,Adult County Drugs,POLAR SPEED THERMOLOGISTICS,0001166660,24275.39
Department of Health,Leicestershire Partnership NHS Trust,22/09/23,Nurse - Band 6 -Agency,CAMHS Waiting List Monies,HCL WORKFORCE SOLUTIONS,HWSI0001932,12031.12
Department of Health,Leicestershire Partnership NHS Trust,22/09/23,Nurse - Band 6 -Agency,Crisis Response and Home Treatment,HCL WORKFORCE SOLUTIONS,HWSI0001932,8780.87
Department of Health,Leicestershire Partnership NHS Trust,22/09/23,Nurse - Band 7 - Agency,Crisis Response and Home Treatment,HCL WORKFORCE SOLUTIONS,HWSI0001932,1368.75
Department of Health,Leicestershire Partnership NHS Trust,22/09/23,Nurse - Band 6 -Agency,AMH - Central Access Point,HCL NURSING,HNSI0001457,2200.02
Department of Health,Leicestershire Partnership NHS Trust,22/09/23,NURSE - BAND 2 - AGENCY,Agnes Unit,HCL NURSING,HNSI0001457,13618.16
Department of Health,Leicestershire Partnership NHS Trust,22/09/23,NURSE - BAND 5 - AGENCY,Agnes Unit,HCL NURSING,HNSI0001457,23628.84
Department of Health,Leicestershire Partnership NHS Trust,22/09/23,Nurse - Band 7 - Agency,Agnes Unit,HCL NURSING,HNSI0001457,1598.51
Department of Health,Leicestershire Partnership NHS Trust,22/09/23,NURSE - BAND 2 - AGENCY,Ashby Ward (Bradgate Unit),HCL NURSING,HNSI0001457,1157.44
Department of Health,Leicestershire Partnership NHS Trust,22/09/23,NURSE - BAND 5 - AGENCY,Ashby Ward (Bradgate Unit),HCL NURSING,HNSI0001457,10064.74
Department of Health,Leicestershire Partnership NHS Trust,22/09/23,NURSE - BAND 2 - AGENCY,Aston Ward Bradgate Unit (Prev Welford),HCL NURSING,HNSI0001457,3104.77
Department of Health,Leicestershire Partnership NHS Trust,22/09/23,NURSE - BAND 5 - AGENCY,Aston Ward Bradgate Unit (Prev Welford),HCL NURSING,HNSI0001457,2955.46
Department of Health,Leicestershire Partnership NHS Trust,22/09/23,NURSE - BAND 2 - AGENCY,Beaumont Ward - Bradgate Unit,HCL NURSING,HNSI0001457,5110.10
Department of Health,Leicestershire Partnership NHS Trust,22/09/23,NURSE - BAND 5 - AGENCY,Beaumont Ward - Bradgate Unit,HCL NURSING,HNSI0001457,8193.17
Department of Health,Leicestershire Partnership NHS Trust,22/09/23,NURSE - BAND 2 - AGENCY,Belvoir Psychiatric Intensive Care Unit,HCL NURSING,HNSI0001457,2098.34
Department of Health,Leicestershire Partnership NHS Trust,22/09/23,NURSE - BAND 5 - AGENCY,Belvoir Psychiatric Intensive Care Unit,HCL NURSING,HNSI0001457,6931.30
Department of Health,Leicestershire Partnership NHS Trust,22/09/23,NURSE - BAND 2 - AGENCY,Bosworth Ward - Bradgate Unit,HCL NURSING,HNSI0001457,1502.80
Department of Health,Leicestershire Partnership NHS Trust,22/09/23,NURSE - BAND 5 - AGENCY,Bosworth Ward - Bradgate Unit,HCL NURSING,HNSI0001457,1000.36
Department of Health,Leicestershire Partnership NHS Trust,22/09/23,NURSE - BAND 2 - AGENCY,Cedar (Willows),HCL NURSING,HNSI0001457,377.46
Department of Health,Leicestershire Partnership NHS Trust,22/09/23,NURSE - BAND 5 - AGENCY,Cedar (Willows),HCL NURSING,HNSI0001457,5701.25
Department of Health,Leicestershire Partnership NHS Trust,22/09/23,Nurse - Band 6 -Agency,City West CMHT MHSOP,HCL NURSING,HNSI0001457,1046.25
Department of Health,Leicestershire Partnership NHS Trust,22/09/23,NURSE - BAND 2 - AGENCY,Coleman Ward,HCL NURSING,HNSI0001457,1435.95
Department of Health,Leicestershire Partnership NHS Trust,22/09/23,NURSE - BAND 5 - AGENCY,Coleman Ward,HCL NURSING,HNSI0001457,2878.76
Department of Health,Leicestershire Partnership NHS Trust,22/09/23,NURSE - BAND 5 - AGENCY,Crisis Resolution,HCL NURSING,HNSI0001457,880.95
Department of Health,Leicestershire Partnership NHS Trust,22/09/23,NURSE - BAND 2 - AGENCY,Griffin Ward (HPC),HCL NURSING,HNSI0001457,1290.65
Department of Health,Leicestershire Partnership NHS Trust,22/09/23,NURSE - BAND 5 - AGENCY,Griffin Ward (HPC),HCL NURSING,HNSI0001457,4315.03
Department of Health,Leicestershire Partnership NHS Trust,22/09/23,NURSE - BAND 2 - AGENCY,Gwendolen Ward,HCL NURSING,HNSI0001457,1105.93
Department of Health,Leicestershire Partnership NHS Trust,22/09/23,NURSE - BAND 5 - AGENCY,Gwendolen Ward,HCL NURSING,HNSI0001457,2247.67
Department of Health,Leicestershire Partnership NHS Trust,22/09/23,NURSE - BAND 2 - AGENCY,Heather Ward,HCL NURSING,HNSI0001457,3533.63
Department of Health,Leicestershire Partnership NHS Trust,22/09/23,NURSE - BAND 5 - AGENCY,Heather Ward,HCL NURSING,HNSI0001457,8851.24
Department of Health,Leicestershire Partnership NHS Trust,22/09/23,NURSE - BAND 2 - AGENCY,Kirby Ward,HCL NURSING,HNSI0001457,3293.85
Department of Health,Leicestershire Partnership NHS Trust,22/09/23,NURSE - BAND 5 - AGENCY,Kirby Ward,HCL NURSING,HNSI0001457,2799.62
Department of Health,Leicestershire Partnership NHS Trust,22/09/23,NURSE - BAND 5 - AGENCY,Maple Ward,HCL NURSING,HNSI0001457,1248.56
Department of Health,Leicestershire Partnership NHS Trust,22/09/23,NURSE - BAND 2 - AGENCY,Mill Lodge,HCL NURSING,HNSI0001457,6414.10
Department of Health,Leicestershire Partnership NHS Trust,22/09/23,NURSE - BAND 5 - AGENCY,Mill Lodge,HCL NURSING,HNSI0001457,2461.95
Department of Health,Leicestershire Partnership NHS Trust,22/09/23,NURSE - BAND 2 - AGENCY,Phoenix Ward (HPC),HCL NURSING,HNSI0001457,2016.97
Department of Health,Leicestershire Partnership NHS Trust,22/09/23,NURSE - BAND 5 - AGENCY,Phoenix Ward (HPC),HCL NURSING,HNSI0001457,3399.01
Department of Health,Leicestershire Partnership NHS Trust,22/09/23,NURSE - BAND 2 - AGENCY,Place Of Safety Assessment Unit,HCL NURSING,HNSI0001457,1121.90
Department of Health,Leicestershire Partnership NHS Trust,22/09/23,NURSE - BAND 5 - AGENCY,Place Of Safety Assessment Unit,HCL NURSING,HNSI0001457,4071.91
Department of Health,Leicestershire Partnership NHS Trust,22/09/23,NURSE - BAND 2 - AGENCY,Sycamore (Willows),HCL NURSING,HNSI0001457,392.89
Department of Health,Leicestershire Partnership NHS Trust,22/09/23,NURSE - BAND 5 - AGENCY,Sycamore (Willows),HCL NURSING,HNSI0001457,2266.45
Department of Health,Leicestershire Partnership NHS Trust,22/09/23,NURSE - BAND 2 - AGENCY,Thornton Ward - Bradgate Unit,HCL NURSING,HNSI0001457,870.94
Department of Health,Leicestershire Partnership NHS Trust,22/09/23,NURSE - BAND 5 - AGENCY,Thornton Ward - Bradgate Unit,HCL NURSING,HNSI0001457,3999.49
Department of Health,Leicestershire Partnership NHS Trust,22/09/23,Computer Software,Bradgate Unit Site Services,OXEHEALTH,OX-305,264600.00
Department of Health,Leicestershire Partnership NHS Trust,22/09/23,NURSE - BAND 2 - AGENCY,Beechwood Ward,HCL NURSING,HNSI0001429,7133.37
Department of Health,Leicestershire Partnership NHS Trust,22/09/23,NURSE - BAND 5 - AGENCY,Beechwood Ward,HCL NURSING,HNSI0001429,3163.11
Department of Health,Leicestershire Partnership NHS Trust,22/09/23,NURSE - BAND 5 - AGENCY,City Planned Care - East,HCL NURSING,HNSI0001429,32540.08
Department of Health,Leicestershire Partnership NHS Trust,22/09/23,NURSE - BAND 5 - AGENCY,City Planned Care - West,HCL NURSING,HNSI0001429,80594.54
Department of Health,Leicestershire Partnership NHS Trust,22/09/23,NURSE - BAND 2 - AGENCY,Clarendon Ward,HCL NURSING,HNSI0001429,5652.29
Department of Health,Leicestershire Partnership NHS Trust,22/09/23,NURSE - BAND 5 - AGENCY,Clarendon Ward,HCL NURSING,HNSI0001429,2223.21
Department of Health,Leicestershire Partnership NHS Trust,22/09/23,NURSE - BAND 2 - AGENCY,Coalville Snibston Ward,HCL NURSING,HNSI0001429,9746.63
Department of Health,Leicestershire Partnership NHS Trust,22/09/23,NURSE - BAND 5 - AGENCY,Coalville Snibston Ward,HCL NURSING,HNSI0001429,2854.18
Department of Health,Leicestershire Partnership NHS Trust,22/09/23,NURSE - BAND 2 - AGENCY,Coalville Ward 2,HCL NURSING,HNSI0001429,5284.90
Department of Health,Leicestershire Partnership NHS Trust,22/09/23,NURSE - BAND 5 - AGENCY,Coalville Ward 2,HCL NURSING,HNSI0001429,772.10
Department of Health,Leicestershire Partnership NHS Trust,22/09/23,NURSE - BAND 2 - AGENCY,Dalgliesh Ward,HCL NURSING,HNSI0001429,3961.66
Department of Health,Leicestershire Partnership NHS Trust,22/09/23,NURSE - BAND 5 - AGENCY,Dalgliesh Ward,HCL NURSING,HNSI0001429,2581.91
Department of Health,Leicestershire Partnership NHS Trust,22/09/23,NURSE - BAND 5 - AGENCY,"East Planned Care - Melton,Syston,Rutland",HCL NURSING,HNSI0001429,2315.00
Department of Health,Leicestershire Partnership NHS Trust,22/09/23,NURSE - BAND 2 - AGENCY,H&B Comm Hosp East Ward,HCL NURSING,HNSI0001429,6145.49
Department of Health,Leicestershire Partnership NHS Trust,22/09/23,NURSE - BAND 5 - AGENCY,H&B Comm Hosp East Ward,HCL NURSING,HNSI0001429,2761.06
Department of Health,Leicestershire Partnership NHS Trust,22/09/23,NURSE - BAND 2 - AGENCY,H&B Comm Hosp North Ward,HCL NURSING,HNSI0001429,4265.27
Department of Health,Leicestershire Partnership NHS Trust,22/09/23,NURSE - BAND 5 - AGENCY,H&B Comm Hosp North Ward,HCL NURSING,HNSI0001429,2275.59
Department of Health,Leicestershire Partnership NHS Trust,22/09/23,NURSE - BAND 2 - AGENCY,Lough Swithland Ward,HCL NURSING,HNSI0001429,3840.74
Department of Health,Leicestershire Partnership NHS Trust,22/09/23,NURSE - BAND 5 - AGENCY,Lough Swithland Ward,HCL NURSING,HNSI0001429,2845.49
Department of Health,Leicestershire Partnership NHS Trust,22/09/23,NURSE - BAND 2 - AGENCY,Loughborough Charnwood Ward,HCL NURSING,HNSI0001429,8817.71
Department of Health,Leicestershire Partnership NHS Trust,22/09/23,NURSE - BAND 5 - AGENCY,Loughborough Charnwood Ward,HCL NURSING,HNSI0001429,9230.15
Department of Health,Leicestershire Partnership NHS Trust,22/09/23,NURSE - BAND 5 - AGENCY,Non Recurrent 2012/13,HCL NURSING,HNSI0001429,49841.30
Department of Health,Leicestershire Partnership NHS Trust,22/09/23,NURSE - BAND 2 - AGENCY,Rutland Ward Nursing,HCL NURSING,HNSI0001429,4162.46
Department of Health,Leicestershire Partnership NHS Trust,22/09/23,NURSE - BAND 5 - AGENCY,Rutland Ward Nursing,HCL NURSING,HNSI0001429,4622.96
Department of Health,Leicestershire Partnership NHS Trust,22/09/23,NURSE - BAND 2 - AGENCY,St Lukes Stroke Ward,HCL NURSING,HNSI0001429,5496.10
Department of Health,Leicestershire Partnership NHS Trust,22/09/23,NURSE - BAND 5 - AGENCY,St Lukes Stroke Ward,HCL NURSING,HNSI0001429,2159.39
Department of Health,Leicestershire Partnership NHS Trust,22/09/23,NURSE - BAND 2 - AGENCY,St Lukes Ward 3,HCL NURSING,HNSI0001429,3769.50
Department of Health,Leicestershire Partnership NHS Trust,22/09/23,NURSE - BAND 5 - AGENCY,St Lukes Ward 3,HCL NURSING,HNSI0001429,1020.86
Department of Health,Leicestershire Partnership NHS Trust,22/09/23,NURSE - BAND 5 - AGENCY,West Planned Care  - Charnwood Hub,HCL NURSING,HNSI0001429,23313.75
Department of Health,Leicestershire Partnership NHS Trust,22/09/23,NURSE - BAND 5 - AGENCY,West Planned Care  - Hinckley Hub,HCL NURSING,HNSI0001429,1702.54
Department of Health,Leicestershire Partnership NHS Trust,22/09/23,NURSE - BAND 2 - AGENCY,Beechwood Ward,HCL NURSING,HNSI0001437,5708.51
Department of Health,Leicestershire Partnership NHS Trust,22/09/23,NURSE - BAND 5 - AGENCY,Beechwood Ward,HCL NURSING,HNSI0001437,917.07
Department of Health,Leicestershire Partnership NHS Trust,22/09/23,NURSE - BAND 5 - AGENCY,City Planned Care - East,HCL NURSING,HNSI0001437,17771.45
Department of Health,Leicestershire Partnership NHS Trust,22/09/23,NURSE - BAND 5 - AGENCY,City Planned Care - West,HCL NURSING,HNSI0001437,12082.74
Department of Health,Leicestershire Partnership NHS Trust,22/09/23,NURSE - BAND 2 - AGENCY,Clarendon Ward,HCL NURSING,HNSI0001437,5529.93
Department of Health,Leicestershire Partnership NHS Trust,22/09/23,NURSE - BAND 5 - AGENCY,Clarendon Ward,HCL NURSING,HNSI0001437,2118.12
Department of Health,Leicestershire Partnership NHS Trust,22/09/23,NURSE - BAND 2 - AGENCY,Coalville Snibston Ward,HCL NURSING,HNSI0001437,7676.37
Department of Health,Leicestershire Partnership NHS Trust,22/09/23,NURSE - BAND 5 - AGENCY,Coalville Snibston Ward,HCL NURSING,HNSI0001437,2493.94
Department of Health,Leicestershire Partnership NHS Trust,22/09/23,NURSE - BAND 2 - AGENCY,Coalville Ward 2,HCL NURSING,HNSI0001437,4146.26
Department of Health,Leicestershire Partnership NHS Trust,22/09/23,NURSE - BAND 5 - AGENCY,Coalville Ward 2,HCL NURSING,HNSI0001437,1359.94
Department of Health,Leicestershire Partnership NHS Trust,22/09/23,NURSE - BAND 2 - AGENCY,Dalgliesh Ward,HCL NURSING,HNSI0001437,7781.61
Department of Health,Leicestershire Partnership NHS Trust,22/09/23,NURSE - BAND 5 - AGENCY,Dalgliesh Ward,HCL NURSING,HNSI0001437,4470.44
Department of Health,Leicestershire Partnership NHS Trust,22/09/23,NURSE - BAND 5 - AGENCY,"East Planned Care - Melton,Syston,Rutland",HCL NURSING,HNSI0001437,812.64
Department of Health,Leicestershire Partnership NHS Trust,22/09/23,NURSE - BAND 2 - AGENCY,H&B Comm Hosp East Ward,HCL NURSING,HNSI0001437,6337.31
Department of Health,Leicestershire Partnership NHS Trust,22/09/23,NURSE - BAND 5 - AGENCY,H&B Comm Hosp East Ward,HCL NURSING,HNSI0001437,7492.83
Department of Health,Leicestershire Partnership NHS Trust,22/09/23,NURSE - BAND 2 - AGENCY,H&B Comm Hosp North Ward,HCL NURSING,HNSI0001437,2811.21
Department of Health,Leicestershire Partnership NHS Trust,22/09/23,NURSE - BAND 5 - AGENCY,H&B Comm Hosp North Ward,HCL NURSING,HNSI0001437,3333.03
Department of Health,Leicestershire Partnership NHS Trust,22/09/23,NURSE - BAND 2 - AGENCY,Lough Swithland Ward,HCL NURSING,HNSI0001437,205.84
Department of Health,Leicestershire Partnership NHS Trust,22/09/23,NURSE - BAND 5 - AGENCY,Lough Swithland Ward,HCL NURSING,HNSI0001437,3911.38
Department of Health,Leicestershire Partnership NHS Trust,22/09/23,NURSE - BAND 2 - AGENCY,Loughborough Charnwood Ward,HCL NURSING,HNSI0001437,5733.50
Department of Health,Leicestershire Partnership NHS Trust,22/09/23,NURSE - BAND 5 - AGENCY,Loughborough Charnwood Ward,HCL NURSING,HNSI0001437,6009.15
Department of Health,Leicestershire Partnership NHS Trust,22/09/23,NURSE - BAND 5 - AGENCY,Non Recurrent 2012/13,HCL NURSING,HNSI0001437,-66.39
Department of Health,Leicestershire Partnership NHS Trust,22/09/23,NURSE - BAND 2 - AGENCY,Rutland Ward Nursing,HCL NURSING,HNSI0001437,8510.89
Department of Health,Leicestershire Partnership NHS Trust,22/09/23,NURSE - BAND 5 - AGENCY,Rutland Ward Nursing,HCL NURSING,HNSI0001437,2965.28
Department of Health,Leicestershire Partnership NHS Trust,22/09/23,NURSE - BAND 2 - AGENCY,St Lukes Stroke Ward,HCL NURSING,HNSI0001437,6424.41
Department of Health,Leicestershire Partnership NHS Trust,22/09/23,NURSE - BAND 5 - AGENCY,St Lukes Stroke Ward,HCL NURSING,HNSI0001437,6945.91
Department of Health,Leicestershire Partnership NHS Trust,22/09/23,NURSE - BAND 2 - AGENCY,St Lukes Ward 3,HCL NURSING,HNSI0001437,4315.86
Department of Health,Leicestershire Partnership NHS Trust,22/09/23,NURSE - BAND 5 - AGENCY,St Lukes Ward 3,HCL NURSING,HNSI0001437,2349.93
Department of Health,Leicestershire Partnership NHS Trust,22/09/23,NURSE - BAND 5 - AGENCY,West Planned Care  - Charnwood Hub,HCL NURSING,HNSI0001437,971.25
Department of Health,Leicestershire Partnership NHS Trust,22/09/23,NURSE - BAND 5 - AGENCY,West Planned Care  - Hinckley Hub,HCL NURSING,HNSI0001437,1199.02
Department of Health,Leicestershire Partnership NHS Trust,22/09/23,NURSE - BAND 2 - AGENCY,Beechwood Ward,HCL NURSING,HNSI0001448,8986.74
Department of Health,Leicestershire Partnership NHS Trust,22/09/23,NURSE - BAND 5 - AGENCY,Beechwood Ward,HCL NURSING,HNSI0001448,2464.02
Department of Health,Leicestershire Partnership NHS Trust,22/09/23,NURSE - BAND 5 - AGENCY,City Planned Care - East,HCL NURSING,HNSI0001448,18513.33
Department of Health,Leicestershire Partnership NHS Trust,22/09/23,NURSE - BAND 5 - AGENCY,City Planned Care - West,HCL NURSING,HNSI0001448,30571.18
Department of Health,Leicestershire Partnership NHS Trust,22/09/23,NURSE - BAND 2 - AGENCY,Clarendon Ward,HCL NURSING,HNSI0001448,5375.01
Department of Health,Leicestershire Partnership NHS Trust,22/09/23,NURSE - BAND 5 - AGENCY,Clarendon Ward,HCL NURSING,HNSI0001448,1326.54
Department of Health,Leicestershire Partnership NHS Trust,22/09/23,NURSE - BAND 2 - AGENCY,Coalville Snibston Ward,HCL NURSING,HNSI0001448,6254.78
Department of Health,Leicestershire Partnership NHS Trust,22/09/23,NURSE - BAND 5 - AGENCY,Coalville Snibston Ward,HCL NURSING,HNSI0001448,2618.84
Department of Health,Leicestershire Partnership NHS Trust,22/09/23,NURSE - BAND 2 - AGENCY,Coalville Ward 2,HCL NURSING,HNSI0001448,2310.93
Department of Health,Leicestershire Partnership NHS Trust,22/09/23,NURSE - BAND 5 - AGENCY,Coalville Ward 2,HCL NURSING,HNSI0001448,1029.70
Department of Health,Leicestershire Partnership NHS Trust,22/09/23,NURSE - BAND 2 - AGENCY,Dalgliesh Ward,HCL NURSING,HNSI0001448,7890.30
Department of Health,Leicestershire Partnership NHS Trust,22/09/23,NURSE - BAND 5 - AGENCY,Dalgliesh Ward,HCL NURSING,HNSI0001448,5347.81
Department of Health,Leicestershire Partnership NHS Trust,22/09/23,NURSE - BAND 5 - AGENCY,"East Planned Care - Melton,Syston,Rutland",HCL NURSING,HNSI0001448,2192.99
Department of Health,Leicestershire Partnership NHS Trust,22/09/23,NURSE - BAND 2 - AGENCY,H&B Comm Hosp East Ward,HCL NURSING,HNSI0001448,9672.20
Department of Health,Leicestershire Partnership NHS Trust,22/09/23,NURSE - BAND 5 - AGENCY,H&B Comm Hosp East Ward,HCL NURSING,HNSI0001448,5471.45
Department of Health,Leicestershire Partnership NHS Trust,22/09/23,NURSE - BAND 2 - AGENCY,H&B Comm Hosp North Ward,HCL NURSING,HNSI0001448,4193.70
Department of Health,Leicestershire Partnership NHS Trust,22/09/23,NURSE - BAND 5 - AGENCY,H&B Comm Hosp North Ward,HCL NURSING,HNSI0001448,3493.60
Department of Health,Leicestershire Partnership NHS Trust,22/09/23,NURSE - BAND 2 - AGENCY,Lough Swithland Ward,HCL NURSING,HNSI0001448,3096.12
Department of Health,Leicestershire Partnership NHS Trust,22/09/23,NURSE - BAND 5 - AGENCY,Lough Swithland Ward,HCL NURSING,HNSI0001448,3519.69
Department of Health,Leicestershire Partnership NHS Trust,22/09/23,NURSE - BAND 2 - AGENCY,Loughborough Charnwood Ward,HCL NURSING,HNSI0001448,6943.01
Department of Health,Leicestershire Partnership NHS Trust,22/09/23,NURSE - BAND 5 - AGENCY,Loughborough Charnwood Ward,HCL NURSING,HNSI0001448,11322.91
Department of Health,Leicestershire Partnership NHS Trust,22/09/23,NURSE - BAND 5 - AGENCY,Non Recurrent 2012/13,HCL NURSING,HNSI0001448,12446.19
Department of Health,Leicestershire Partnership NHS Trust,22/09/23,NURSE - BAND 2 - AGENCY,Rutland Ward Nursing,HCL NURSING,HNSI0001448,6496.73
Department of Health,Leicestershire Partnership NHS Trust,22/09/23,NURSE - BAND 5 - AGENCY,Rutland Ward Nursing,HCL NURSING,HNSI0001448,2411.56
Department of Health,Leicestershire Partnership NHS Trust,22/09/23,NURSE - BAND 2 - AGENCY,St Lukes Stroke Ward,HCL NURSING,HNSI0001448,6981.27
Department of Health,Leicestershire Partnership NHS Trust,22/09/23,NURSE - BAND 5 - AGENCY,St Lukes Stroke Ward,HCL NURSING,HNSI0001448,4315.23
Department of Health,Leicestershire Partnership NHS Trust,22/09/23,NURSE - BAND 2 - AGENCY,St Lukes Ward 3,HCL NURSING,HNSI0001448,4603.57
Department of Health,Leicestershire Partnership NHS Trust,22/09/23,NURSE - BAND 5 - AGENCY,St Lukes Ward 3,HCL NURSING,HNSI0001448,3507.75
Department of Health,Leicestershire Partnership NHS Trust,22/09/23,NURSE - BAND 5 - AGENCY,West Planned Care  - Charnwood Hub,HCL NURSING,HNSI0001448,7884.83
Department of Health,Leicestershire Partnership NHS Trust,22/09/23,NURSE - BAND 5 - AGENCY,West Planned Care  - Hinckley Hub,HCL NURSING,HNSI0001448,2450.12
Department of Health,Leicestershire Partnership NHS Trust,22/09/23,NURSE - BAND 2 - AGENCY,Beechwood Ward,HCL NURSING,HNSI0001458,5339.03
Department of Health,Leicestershire Partnership NHS Trust,22/09/23,NURSE - BAND 5 - AGENCY,Beechwood Ward,HCL NURSING,HNSI0001458,3676.09
Department of Health,Leicestershire Partnership NHS Trust,22/09/23,NURSE - BAND 5 - AGENCY,City Planned Care - East,HCL NURSING,HNSI0001458,19527.24
Department of Health,Leicestershire Partnership NHS Trust,22/09/23,NURSE - BAND 5 - AGENCY,City Planned Care - West,HCL NURSING,HNSI0001458,24347.73
Department of Health,Leicestershire Partnership NHS Trust,22/09/23,NURSE - BAND 2 - AGENCY,Clarendon Ward,HCL NURSING,HNSI0001458,5733.19
Department of Health,Leicestershire Partnership NHS Trust,22/09/23,NURSE - BAND 2 - AGENCY,Coalville Snibston Ward,HCL NURSING,HNSI0001458,6028.20
Department of Health,Leicestershire Partnership NHS Trust,22/09/23,NURSE - BAND 5 - AGENCY,Coalville Snibston Ward,HCL NURSING,HNSI0001458,3401.10
Department of Health,Leicestershire Partnership NHS Trust,22/09/23,NURSE - BAND 2 - AGENCY,Coalville Ward 2,HCL NURSING,HNSI0001458,4758.74
Department of Health,Leicestershire Partnership NHS Trust,22/09/23,NURSE - BAND 5 - AGENCY,Coalville Ward 2,HCL NURSING,HNSI0001458,697.67
Department of Health,Leicestershire Partnership NHS Trust,22/09/23,NURSE - BAND 2 - AGENCY,Dalgliesh Ward,HCL NURSING,HNSI0001458,7838.22
Department of Health,Leicestershire Partnership NHS Trust,22/09/23,NURSE - BAND 5 - AGENCY,Dalgliesh Ward,HCL NURSING,HNSI0001458,5354.81
Department of Health,Leicestershire Partnership NHS Trust,22/09/23,NURSE - BAND 5 - AGENCY,"East Planned Care - Melton,Syston,Rutland",HCL NURSING,HNSI0001458,1110.32
Department of Health,Leicestershire Partnership NHS Trust,22/09/23,NURSE - BAND 5 - AGENCY,"East Planned Care - Oadby,Wigston & Harborough",HCL NURSING,HNSI0001458,1264.23
Department of Health,Leicestershire Partnership NHS Trust,22/09/23,NURSE - BAND 2 - AGENCY,H&B Comm Hosp East Ward,HCL NURSING,HNSI0001458,7810.36
Department of Health,Leicestershire Partnership NHS Trust,22/09/23,NURSE - BAND 5 - AGENCY,H&B Comm Hosp East Ward,HCL NURSING,HNSI0001458,2367.29
Department of Health,Leicestershire Partnership NHS Trust,22/09/23,NURSE - BAND 2 - AGENCY,H&B Comm Hosp North Ward,HCL NURSING,HNSI0001458,4190.26
Department of Health,Leicestershire Partnership NHS Trust,22/09/23,NURSE - BAND 5 - AGENCY,H&B Comm Hosp North Ward,HCL NURSING,HNSI0001458,1844.62
Department of Health,Leicestershire Partnership NHS Trust,22/09/23,NURSE - BAND 2 - AGENCY,Lough Swithland Ward,HCL NURSING,HNSI0001458,1357.59
Department of Health,Leicestershire Partnership NHS Trust,22/09/23,NURSE - BAND 5 - AGENCY,Lough Swithland Ward,HCL NURSING,HNSI0001458,5329.79
Department of Health,Leicestershire Partnership NHS Trust,22/09/23,NURSE - BAND 2 - AGENCY,Loughborough Charnwood Ward,HCL NURSING,HNSI0001458,4857.09
Department of Health,Leicestershire Partnership NHS Trust,22/09/23,NURSE - BAND 5 - AGENCY,Loughborough Charnwood Ward,HCL NURSING,HNSI0001458,5028.17
Department of Health,Leicestershire Partnership NHS Trust,22/09/23,NURSE - BAND 2 - AGENCY,Rutland Ward Nursing,HCL NURSING,HNSI0001458,3982.71
Department of Health,Leicestershire Partnership NHS Trust,22/09/23,NURSE - BAND 5 - AGENCY,Rutland Ward Nursing,HCL NURSING,HNSI0001458,2780.47
Department of Health,Leicestershire Partnership NHS Trust,22/09/23,NURSE - BAND 2 - AGENCY,St Lukes Stroke Ward,HCL NURSING,HNSI0001458,6296.97
Department of Health,Leicestershire Partnership NHS Trust,22/09/23,NURSE - BAND 5 - AGENCY,St Lukes Stroke Ward,HCL NURSING,HNSI0001458,3395.96
Department of Health,Leicestershire Partnership NHS Trust,22/09/23,NURSE - BAND 2 - AGENCY,St Lukes Ward 3,HCL NURSING,HNSI0001458,4299.47
Department of Health,Leicestershire Partnership NHS Trust,22/09/23,NURSE - BAND 5 - AGENCY,St Lukes Ward 3,HCL NURSING,HNSI0001458,1498.89
Department of Health,Leicestershire Partnership NHS Trust,22/09/23,NURSE - BAND 5 - AGENCY,West Planned Care  - Charnwood Hub,HCL NURSING,HNSI0001458,2643.61
Department of Health,Leicestershire Partnership NHS Trust,22/09/23,NURSE - BAND 5 - AGENCY,West Planned Care  - Hinckley Hub,HCL NURSING,HNSI0001458,4815.68
Department of Health,Leicestershire Partnership NHS Trust,25/09/23,FP10'S,Adult City Drugs,NHS BUS SERVICES AUTHORITY,1000078667,25064.73
Department of Health,Leicestershire Partnership NHS Trust,25/09/23,FP10'S,Adult County Drugs,NHS BUS SERVICES AUTHORITY,1000078667,20169.80
Department of Health,Leicestershire Partnership NHS Trust,25/09/23,FP10'S,CAMHS Outpatients,NHS BUS SERVICES AUTHORITY,1000078667,9389.62
Department of Health,Leicestershire Partnership NHS Trust,25/09/23,FP10'S,Community Paediatrics,NHS BUS SERVICES AUTHORITY,1000078667,1304.11
Department of Health,Leicestershire Partnership NHS Trust,25/09/23,FP10'S,Dementia Related Drugs and Investigations,NHS BUS SERVICES AUTHORITY,1000078667,32610.79
Department of Health,Leicestershire Partnership NHS Trust,25/09/23,FP10'S,Eating Disorders Outpatient Service,NHS BUS SERVICES AUTHORITY,1000078667,5457.17
Department of Health,Leicestershire Partnership NHS Trust,25/09/23,FP10'S,Forensic Services - Community,NHS BUS SERVICES AUTHORITY,1000078667,24757.25
Department of Health,Leicestershire Partnership NHS Trust,25/09/23,FP10'S,LOROS Pharmacy,NHS BUS SERVICES AUTHORITY,1000078667,1451.14
Department of Health,Leicestershire Partnership NHS Trust,25/09/23,FP10'S,Mental Health Liaison Team,NHS BUS SERVICES AUTHORITY,1000078667,21.41
Department of Health,Leicestershire Partnership NHS Trust,25/09/23,FP10'S,PIER Team - Early Intervention Services,NHS BUS SERVICES AUTHORITY,1000078667,23751.91
Department of Health,Leicestershire Partnership NHS Trust,25/09/23,FP10'S,Snr Med Staff (Inc Med Reps),NHS BUS SERVICES AUTHORITY,1000078667,1754.51
Department of Health,Leicestershire Partnership NHS Trust,25/09/23,Crs_NHS_LT1y -Resus Inventory Supplied.,Balance Sheet Collection,SUPPLY CHAIN CO LTD,1124168200,30749.48
Department of Health,Leicestershire Partnership NHS Trust,25/09/23,Landline Telephone Rental / Calls,"Beaumont Leys Health Centre (P94, LPT)",VIRGIN MEDIA BUSINESS,853083001/004/0923,344.49
Department of Health,Leicestershire Partnership NHS Trust,25/09/23,Landline Telephone Rental / Calls,"Bennion Centre (including Forest Grange Day Unit) (P8, LPT)",VIRGIN MEDIA BUSINESS,853083001/004/0923,8.77
Department of Health,Leicestershire Partnership NHS Trust,25/09/23,Landline Telephone Rental / Calls,"Bradgate Unit (including Glenvale day Unit) (P7, LPT)",VIRGIN MEDIA BUSINESS,853083001/004/0923,6126.61
Department of Health,Leicestershire Partnership NHS Trust,25/09/23,Landline Telephone Rental / Calls,Braunstone Health and Social Care Centre (Part) (PROPCO),VIRGIN MEDIA BUSINESS,853083001/004/0923,1140.50
Department of Health,Leicestershire Partnership NHS Trust,25/09/23,Landline Telephone Rental / Calls,Bridge Park Plaza - First Floor (LPT),VIRGIN MEDIA BUSINESS,853083001/004/0923,2999.16
Department of Health,Leicestershire Partnership NHS Trust,25/09/23,Landline Telephone Rental / Calls,"Coalville Community Hospital (P138, LPT)",VIRGIN MEDIA BUSINESS,853083001/004/0923,1393.73
Department of Health,Leicestershire Partnership NHS Trust,25/09/23,Landline Telephone Rental / Calls,"Coalville Health Centre (P121, LPT)",VIRGIN MEDIA BUSINESS,853083001/004/0923,120.07
Department of Health,Leicestershire Partnership NHS Trust,25/09/23,Landline Telephone Rental / Calls,County Hall,VIRGIN MEDIA BUSINESS,853083001/004/0923,1514.65
Department of Health,Leicestershire Partnership NHS Trust,25/09/23,Landline Telephone Rental / Calls,Estates & Facilities Central,VIRGIN MEDIA BUSINESS,853083001/004/0923,7.13
Department of Health,Leicestershire Partnership NHS Trust,25/09/23,Landline Telephone Rental / Calls,"Evington Centre (P6, LPT)",VIRGIN MEDIA BUSINESS,853083001/004/0923,204.06
Department of Health,Leicestershire Partnership NHS Trust,25/09/23,Landline Telephone Rental / Calls,HIS,VIRGIN MEDIA BUSINESS,853083001/004/0923,2799.84
Department of Health,Leicestershire Partnership NHS Trust,25/09/23,Landline Telephone Rental / Calls,"Hawthorne Centre - Coalville (P14, LPT)",VIRGIN MEDIA BUSINESS,853083001/004/0923,484.07
Department of Health,Leicestershire Partnership NHS Trust,25/09/23,Landline Telephone Rental / Calls,"Hinckley and Bosworth Community Hospital (Sunnyside) (P133, LPT)",VIRGIN MEDIA BUSINESS,853083001/004/0923,941.60
Department of Health,Leicestershire Partnership NHS Trust,25/09/23,Landline Telephone Rental / Calls,"Hynca Lodge (P33, LPT)",VIRGIN MEDIA BUSINESS,853083001/004/0923,381.55
Department of Health,Leicestershire Partnership NHS Trust,25/09/23,Landline Telephone Rental / Calls,"Legion House, Ashby",VIRGIN MEDIA BUSINESS,853083001/004/0923,21.16
Department of Health,Leicestershire Partnership NHS Trust,25/09/23,Landline Telephone Rental / Calls,"Loughborough Hospital (P136, LPT)",VIRGIN MEDIA BUSINESS,853083001/004/0923,4483.16
Department of Health,Leicestershire Partnership NHS Trust,25/09/23,Landline Telephone Rental / Calls,Mawson House (LPT),VIRGIN MEDIA BUSINESS,853083001/004/0923,443.22
Department of Health,Leicestershire Partnership NHS Trust,25/09/23,Landline Telephone Rental / Calls,Merlyn Vaz Centre (CHP),VIRGIN MEDIA BUSINESS,853083001/004/0923,1371.72
Department of Health,Leicestershire Partnership NHS Trust,25/09/23,Landline Telephone Rental / Calls,"Mett Centre (P49, LPT)",VIRGIN MEDIA BUSINESS,853083001/004/0923,101.17
Department of Health,Leicestershire Partnership NHS Trust,25/09/23,Landline Telephone Rental / Calls,NSPCC Training Cente,VIRGIN MEDIA BUSINESS,853083001/004/0923,159.96
Department of Health,Leicestershire Partnership NHS Trust,25/09/23,Landline Telephone Rental / Calls,New Parks Health Centre (PROPCO),VIRGIN MEDIA BUSINESS,853083001/004/0923,1599.71
Department of Health,Leicestershire Partnership NHS Trust,25/09/23,Landline Telephone Rental / Calls,"OSL House (P54, LPT)",VIRGIN MEDIA BUSINESS,853083001/004/0923,917.94
Department of Health,Leicestershire Partnership NHS Trust,25/09/23,Landline Telephone Rental / Calls,"Orchard Resource Centre (P15, LPT)",VIRGIN MEDIA BUSINESS,853083001/004/0923,504.97
Department of Health,Leicestershire Partnership NHS Trust,25/09/23,Landline Telephone Rental / Calls,Pasley Road Health Centre (PROPCO),VIRGIN MEDIA BUSINESS,853083001/004/0923,150.98
Department of Health,Leicestershire Partnership NHS Trust,25/09/23,Landline Telephone Rental / Calls,"Prince Philip House (P96, LPT)",VIRGIN MEDIA BUSINESS,853083001/004/0923,1250.26
Department of Health,Leicestershire Partnership NHS Trust,25/09/23,Landline Telephone Rental / Calls,Rushey Mead Health Centre (PROPCO),VIRGIN MEDIA BUSINESS,853083001/004/0923,75.54
Department of Health,Leicestershire Partnership NHS Trust,25/09/23,Landline Telephone Rental / Calls,"Springfield Road Health Centre (P92, LPT)",VIRGIN MEDIA BUSINESS,853083001/004/0923,365.14
Department of Health,Leicestershire Partnership NHS Trust,25/09/23,Landline Telephone Rental / Calls,"St Peters Health Center (Part 1st and 2nd floors) (P66, LPT)",VIRGIN MEDIA BUSINESS,853083001/004/0923,1587.83
Department of Health,Leicestershire Partnership NHS Trust,25/09/23,Landline Telephone Rental / Calls,"Swithland House - London Road 352 (P44, LPT)",VIRGIN MEDIA BUSINESS,853083001/004/0923,263.54
Department of Health,Leicestershire Partnership NHS Trust,25/09/23,Landline Telephone Rental / Calls,"The Cedars (P19, LPT)",VIRGIN MEDIA BUSINESS,853083001/004/0923,689.17
Department of Health,Leicestershire Partnership NHS Trust,25/09/23,Landline Telephone Rental / Calls,"The Willows - Cordelia Close (P22, LPT)",VIRGIN MEDIA BUSINESS,853083001/004/0923,484.45
Department of Health,Leicestershire Partnership NHS Trust,25/09/23,Landline Telephone Rental / Calls,"Valentine Centre (P3, LPT)",VIRGIN MEDIA BUSINESS,853083001/004/0923,614.66
Department of Health,Leicestershire Partnership NHS Trust,25/09/23,Landline Telephone Rental / Calls,Warren Park Way 25 (PROPCO),VIRGIN MEDIA BUSINESS,853083001/004/0923,768.96
Department of Health,Leicestershire Partnership NHS Trust,25/09/23,Landline Telephone Rental / Calls,"Westcotes Group -Westcotes House (P78, LPT)",VIRGIN MEDIA BUSINESS,853083001/004/0923,823.92
Department of Health,Leicestershire Partnership NHS Trust,25/09/23,Landline Telephone Rental / Calls,"Winstanley Drive Health Centre (P8, LPT)",VIRGIN MEDIA BUSINESS,853083001/004/0923,46.44
Department of Health,Leicestershire Partnership NHS Trust,26/09/23,Services / Recharges from NHS Trusts,Inter Unit I & E Distribution,UHL NHS TRUST (RWE),L0274147,93376.76
Department of Health,Leicestershire Partnership NHS Trust,26/09/23,Pharmacy Payables Control A/C (LPT JAC),Balance Sheet Collection,SEQIRUS UK,9160155049,31257.36
Department of Health,Leicestershire Partnership NHS Trust,26/09/23,CHP Estates Management,Merlyn Vaz Centre (CHP),COMM HLTH PARTNERSHIPS LTD,0060313087,88383.68
Department of Health,Leicestershire Partnership NHS Trust,26/09/23,CHP Estates Management,Westcotes Health Centre (CHP),COMM HLTH PARTNERSHIPS LTD,0060313089,39151.59
Department of Health,Leicestershire Partnership NHS Trust,26/09/23,Legal Fees,Chief Executives Office,BROWNE JACOBSON LLP,1035308,29945.82
Department of Health,Leicestershire Partnership NHS Trust,28/09/23,Services / Recharges from NHS Trusts,Inter Unit I & E Distribution,UHL NHS TRUST (RWE),L0274310,124680.00
Department of Health,Leicestershire Partnership NHS Trust,28/09/23,Electricity,Estates & Facilities Central,UHL NHS TRUST (RWE),L0274332,56255.76
Department of Health,Leicestershire Partnership NHS Trust,28/09/23,Electricity,Estates & Facilities Central,UHL NHS TRUST (RWE),L0274334,56255.76
Department of Health,Leicestershire Partnership NHS Trust,28/09/23,GP IT Expenditure,Area Team,SOFTCAT PLC,INVUK1011633,45060.00
Department of Health,Leicestershire Partnership NHS Trust,28/09/23,Occupational Health,HR Operations,UHL NHS TRUST (RWE),L0274353,88138.00
Department of Health,Leicestershire Partnership NHS Trust,29/09/23,UHL Facilities Management SLA,Estates & Facilities Central,UHL NHS TRUST (RWE),L0274413,52009.21
